Cogmind - Beta 15 @@@ ROGUE MODE // 2025.07.10 @ 14:17:16 Player: jumpy Result: Destroyed by S-27 Virus with Autogun Performance ------------- Evolutions (3) 1500 Regions Visited (5) 1000 Robots Destroyed (86) 430 Value Destroyed (2189) 2189 Prototype IDs (5) 100 Alien Tech Used (0) 0 Bonus (734) 734 TOTAL SCORE: 5953 Bonus ------- High Alert Combat Kills 34 Entered Garrisons 200 Used RIF Installer 500 Cogmind --------- Core Integrity 0/700 Matter 298/300 Energy 252/310 System Corruption 11% Temperature Hot (207) Movement Rolling (105) Ox1 Location -7/Factory Parts ------- > --- POWER (1) -------- Heavy Deuterium Engine > --- PROPULSION (5) --- Wheel Compact Wheel > --- UTILITY (5) ------ Large Storage Unit Improved Signal Interpreter Hacking Suite System Restoration Module > --- WEAPON (2) ------- Gatling Laser Gatling Laser > --- INVENTORY (15) --- Light Nuclear Core Light Nuclear Core Improved Hover Unit Medium Storage Unit Improved Terrain Scan Processor Advanced Targeting Computer Improved Melee Analysis Suite Improved Melee Analysis Suite Improved Propulsion Shielding Hacking Suite Remote Datajack Powered Hammer Peak State ------------ > --- POWER ------------ Heavy Deuterium Engine > --- PROPULSION ------- Wheel Compact Wheel Armored Wheel > --- UTILITY ---------- Large Storage Unit Improved Signal Interpreter Hacking Suite System Restoration Module > --- WEAPON ----------- Gatling Laser Gatling Laser > --- INVENTORY -------- Light Nuclear Core Light Nuclear Core Improved Hover Unit Medium Storage Unit Improved Terrain Scan Processor Advanced Targeting Computer Improved Melee Analysis Suite Improved Melee Analysis Suite Improved Propulsion Shielding Hacking Suite Powered Hammer [Rating: 31] Favorites ----------- Power Cooled Ion Engine Engine Cooled Ion Engine Power Core Light Nuclear Core Propulsion Light Treads Treads Light Treads Leg Aluminum Leg Wheel Armored Wheel Flight Unit VTOL Module Utility Large Storage Unit Device Seismic Detector Storage Large Storage Unit Processor Improved Signal Interpreter Hackware Hacking Suite Weapon Autogun Energy Gun Gatling Laser Ballistic Gun Autogun Launcher Rocket Launcher Impact Weapon Powered Hammer Build | -11 -10 -9 -8 -8 -7 ------- Run | Yrd Mat Mat Mat Gar Fac Slots Evolved 6 | . . 2 2 . 2 Power . | . . . . . . Propulsion 3 | . . 1 1 . 1 Utility 3 | . . 1 1 . 1 Weapon . | . . . . . . Parts Attached 52 | 7 2 16 6 6 15 Power 10 | 1 1 4 . 1 3 Engine 9 | 1 1 4 . 1 2 Core 1 | . . . . . 1 Reactor . | . . . . . . Propulsion 17 | 2 . 5 2 2 6 Treads 11 | 2 . 5 2 2 . Leg 2 | . . . . . 2 Wheel 3 | . . . . . 3 Hover . | . . . . . . Flight 1 | . . . . . 1 Utility 11 | 2 1 2 2 2 2 Device 5 | 1 . 1 1 1 1 Storage 2 | 1 1 . . . . Processor 2 | . . . 1 . 1 Hackware 2 | . . 1 . 1 . Protection . | . . . . . . Artifact . | . . . . . . Weapon 14 | 2 . 5 2 1 4 Energy Gun 7 | . . 3 . . 4 Energy Cannon . | . . . . . . Ballistic Gun 5 | 2 . 2 1 . . Ballistic Cannon . | . . . . . . Launcher 1 | . . . 1 . . Special Weapon . | . . . . . . Impact Weapon 1 | . . . . 1 . Slashing Weapon . | . . . . . . Piercing Weapon . | . . . . . . Special Melee Weapon . | . . . . . . Unidentified Prototypes 5 | . . 4 . . 1 Corrupted Parts 1 | . . . . . 1 System Corruption 12 | . . . . . 12 Parts Lost 25 | . . 6 2 6 11 Power 2 | . . . . 1 1 Propulsion 13 | . . 4 2 3 4 Utility 5 | . . 1 . 2 2 Weapon 5 | . . 1 . . 4 Highest Loss Streak 8 | . . 2 1 3 8 To Critical Strikes . | . . . . . . Average Backups 10 | 3 7 10 14 10 10 Power 1 | . 1 1 2 1 . Propulsion 1 | 1 2 3 3 . . Utility 4 | . 2 2 5 4 5 Weapon 3 | . 2 3 3 4 3 Tool/Special . | . . . . . . Unused Backups 23 | . . 9 2 . 12 Power 4 | . . 3 . . 1 Propulsion 4 | . . 2 1 . 1 Utility 9 | . . 1 1 . 7 Weapon 5 | . . 3 . . 2 Tool/Special 1 | . . . . . 1 Average Slot Usage (%) 87 | . 100 93 98 91 63 Engine 8 | . 14 11 9 8 4 Treads 25 | . 28 31 35 30 4 Wheel 1 | . . . . . 5 Device 11 | . 14 15 17 11 3 Storage 9 | . 14 11 9 9 7 Processor 5 | . . . 8 9 9 Hackware 3 | . . 2 . 3 7 Energy Gun 4 | . . 6 . . 8 Ballistic Gun 12 | . 28 15 17 9 . Impact Weapon 2 | . . . . 8 4 Peak Build Rating 31 | 7 8 18 24 26 31 Average Rating 18 | 5 7 14 22 23 25 On Entrance 13 | . 7 8 18 22 23 Naked Turns . | . . . . . . Heaviest Build 40 | 12 29 35 36 36 40 Greatest Support 89 | 40 40 60 86 89 46 Greatest Overweight (x) 8 | . . . . . 8 Average Overweight (x) . | . . . . . . Largest Inventory Capacity 15 | 8 15 15 15 15 15 Average Capacity 14 | 7 14 15 15 15 15 Most Carried 15 | 7 8 15 15 14 13 Average Carried 10 | 3 7 10 14 10 10 Final Capacity 15 | 8 15 15 15 15 15 Final Carried 15 | 7 8 15 14 9 12 Class Distribution -------------------- 91% | Mutant 8% | Scavenger-Mutant Dominant Class ---------------- Mutant | -10/Materials Mutant | -9/Materials Mutant | -8/Materials Mutant | -8/Garrison Mutant | -7/Factory Resources | -11 -10 -9 -8 -8 -7 ----------- Run | Yrd Mat Mat Mat Gar Fac Matter Collected 1295 | 338 52 342 85 326 152 Remotely . | . . . . . . Salvage Created 2835 | 113 112 1008 417 448 737 Parts 171 | 14 9 79 30 11 28 Haulers Intercepted 6 | . 1 5 . . . Recyclers Shooed 2 | . 1 1 . . . Parts Field Recycled . | . . . . . . Retrieved Matter . | . . . . . . Parts Self-Destructed . | . . . . . . Prevented . | . . . . . . Kills | -11 -10 -9 -8 -8 -7 ------- Run | Yrd Mat Mat Mat Gar Fac Combat Hostiles Destroyed 61 | . 4 21 9 10 17 Melee 6 | . . . . 2 4 Guns 39 | . 4 21 6 . 8 AOE 4 | . . . 3 . 1 Classes Destroyed 13 | 2 2 5 1 1 2 Worker 5 | . . 4 . . 1 Builder 3 | . . 2 1 . . Tunneler 4 | 3 . . 1 . . Hauler 6 | . 1 5 . . . Recycler 4 | 1 . . 1 . 2 Operator 1 | . . . 1 . . Watcher 2 | . . 2 . . . Swarmer 31 | . 4 12 3 4 8 Grunt 15 | . . 5 3 3 4 Duelist 2 | . . . . . 2 Sentry 10 | . . 4 3 1 2 Hunter 2 | . . . . 2 . Programmer 1 | . . . . . 1 Best Kill Streak 8 | 2 3 4 8 4 4 Combat Bots Only 4 | . 3 4 4 4 4 Max Kills in Single Turn 2 | 1 1 1 2 1 2 Gunslinging 1 | . . . 1 . . Exploded 2 | . . . 2 . 1 Melee 1 | . . . . 1 1 Uniques/NPCs Destroyed . | . . . . . . Combat | -11 -10 -9 -8 -8 -7 -------- Run | Yrd Mat Mat Mat Gar Fac Hostile Shots Fired 474 | . 37 102 57 62 216 Missed 142 | . 12 25 19 17 69 Hits 332 | . 25 77 38 45 147 Melee 4 | . . . . . 4 Projectile 328 | . 25 77 38 45 143 Critical Strikes 7 | . . . 3 . 4 Damage Taken 3961 | . 199 852 527 652 1731 Core 1129 | . 45 141 49 191 703 Absorbed by Shields . | . . . . . . Core Remaining (%) 75 | 100 82 64 . 56 . Volleys Fired 174 | 17 20 85 22 . 30 Largest 2 | 2 2 2 2 . 2 Hottest 160 | 40 40 96 46 . 160 Shots Fired 313 | 34 40 161 40 . 38 Gun 308 | 34 40 161 36 . 37 Cannon . | . . . . . . Launcher 5 | . . . 4 . 1 Special . | . . . . . . Kinetic 205 | 34 40 95 36 . . Thermal 103 | . . 66 . . 37 Explosive 5 | . . . 4 . 1 Electromagnetic . | . . . . . . Robot Hit Streak 18 | 3 3 12 12 . 18 Robot Miss Streak 5 | 2 5 3 2 . 4 Penetration Max . | . . . . . . Secondary Targets 3 | . . 2 1 . . Max Gunslinging Chain 1 | . . 1 1 . . Shots Hit Robots 233 | 14 16 103 27 22 51 Core Hits 125 | 6 6 45 25 4 39 Critical Kills 2 | . . . . . 2 Critical Parts Destroyed 7 | . . . . 5 2 Critical Strikes 11 | . . 2 . 5 4 Burn 2 | . . 2 . . . Smash 9 | . . . . 5 4 Melee Attacks 59 | . . . . 37 22 Impact 59 | . . . . 37 22 Slashing . | . . . . . . Piercing . | . . . . . . Sneak Attacks 1 | . . . . . 1 Combat Hostiles . | . . . . . . Follow-up Attacks . | . . . . . . Damage Inflicted 5199 | 186 171 1413 837 1061 1531 Guns 2819 | 186 162 1352 340 . 779 Cannons . | . . . . . . Explosions 589 | . . . 495 . 94 Melee 1707 | . . . . 1058 649 Ramming 84 | . 9 61 2 3 9 Kinetic 1519 | 186 162 831 340 . . Thermal 1300 | . . 521 . . 779 Explosive 497 | . . . 403 . 94 Electromagnetic 92 | . . . 92 . . Impact 1707 | . . . . 1058 649 Slashing . | . . . . . . Piercing . | . . . . . . Highest Corruption 14 | . 1 . . . 14 Average Corruption 11 | . 1 . . . 12 Corruption Purged 4 | . . . . . 4 Corruption Blocked . | . . . . . . Effects 26 | . 1 . . . 25 Message Errors 4 | . . . . . 4 Matter Fused 4 | . . . . . 4 Heat Flow Errors 7 | . 1 . . . 6 Energy Discharges 6 | . . . . . 6 Data Loss (minor) 2 | . . . . . 2 Data Loss (major) 2 | . . . . . 2 Alerts 1 | . . . . . 1 Overload Shots . | . . . . . . Overflow Damage 557 | . . 4 . 360 193 Projectiles . | . . . . . . Explosions 54 | . . . . 54 . Melee 503 | . . 4 . 306 193 Knockbacks 10 | . . 1 . 6 3 Impact 10 | . . 1 . 6 3 Kinetic . | . . . . . . Secondary . | . . . . . . Self-Inflicted Damage 206 | . . . . 153 53 Shots 2 | . . . . 1 1 Rammed 13 | . 2 5 2 2 2 Targets Rammed 14 | . 2 6 2 2 2 Kicked . | . . . . . . Crushed 1 | . . 1 . . . Highest Temperature 386 | . 103 386 22 . 255 Average Temperature 65 | . 56 63 13 . 72 Received Heat Transfer 990 | . . 207 261 117 405 Effects 1 | . . . . . 1 Interference 1 | . . . . . 1 Siege Activations . | . . . . . . Martial Activations . | . . . . . . Shielding Activations . | . . . . . . Robots Disrupted . | . . . . . . Combat Hostiles . | . . . . . . Robots Corrupted 13 | . . 1 . 8 4 Combat Hostiles 11 | . . . . 8 3 Parts Fried 17 | . . 3 . 11 3 Impact Corruptions 24 | . . 2 . 12 10 Robots Melted 1 | . . . . . 1 Combat Hostiles 1 | . . . . . 1 Parts Melted 9 | . . 4 . . 5 Heat Transferred 3065 | . . 1315 . . 1750 Parts Sabotaged . | . . . . . . Parts Stolen . | . . . . . . Parts Stripped . | . . . . . . Power Chain Reactions . | . . . . . . Alert | -11 -10 -9 -8 -8 -7 ------- Run | Yrd Mat Mat Mat Gar Fac Maximum Alert Level 2 | . . 1 . 2 1 Low Security (%) 71 | 100 100 84 100 14 53 Level 1 25 | . . 15 . 64 46 Level 2 3 | . . . . 20 . Level 3 . | . . . . . . Level 4 . | . . . . . . Level 5 . | . . . . . . High Security . | . . . . . . Max Security . | . . . . . . Peak Influence 463 | 5 80 247 176 463 252 Initial 242 | . . . 85 89 242 Average 135 | . 33 102 45 306 197 Influence Increases 2041 | 20 127 680 317 434 463 Destroy 0b10 Robot/C 1220 | . 80 420 180 200 340 Destroy 0b10 Robot/NC 130 | 20 5 65 20 5 15 Destroy Leader 266 | . 12 104 50 30 70 Successful Hack 7 | . . . 7 . . Disable Machine 45 | . . . 45 . . Anti-Garrison Action 100 | . . . . 100 . Destroy Structure 78 | . . 1 15 54 8 Lose Combat Pursuer 195 | . 30 90 . 45 30 Influence Decreases 1832 | 20 127 476 384 108 717 Entered New Map 388 | . . . 119 48 221 Time Decay 1194 | 20 127 416 245 . 386 Lost Part 250 | . . 60 20 60 110 Squads Dispatched 5 | . . 2 2 . 1 Investigation . | . . . . . . Extermination 1 | . . . . . 1 Reinforcement 3 | . . 2 1 . . Assault . | . . . . . . Garrison 1 | . . . 1 . . Intercept . | . . . . . . Searches Triggered . | . . . . . . Construction Impeded . | . . . . . . Haulers Reinforced . | . . . . . . Active Scanning Responses . | . . . . . . Cargo Convoy Interrupts . | . . . . . . Stealth | -11 -10 -9 -8 -8 -7 --------- Run | Yrd Mat Mat Mat Gar Fac Distress Signals 4 | . . 2 2 . . Communications Jammed . | . . . . . . Distress Signals . | . . . . . . Times Spotted 91 | . 10 31 17 12 21 Peak Tracking Total 7 | . 5 7 5 4 5 Tactical Retreats 10 | . 2 4 . 3 1 Traps | -11 -10 -9 -8 -8 -7 ------- Run | Yrd Mat Mat Mat Gar Fac Traps Triggered 4 | . 1 . . 1 2 Indirectly . | . . . . . . Trap Hack Attempts . | . . . . . . Triggered . | . . . . . . Disarmed . | . . . . . . Reprogrammed . | . . . . . . Reused . | . . . . . . Traps Extracted . | . . . . . . Installed . | . . . . . . Triggered . | . . . . . . Machines | -11 -10 -9 -8 -8 -7 ---------- Run | Yrd Mat Mat Mat Gar Fac Machines Disabled 5 | . . . 3 2 . Max in Single Turn 2 | . . . 2 2 . Garrison Access 1 | . . . . . 1 Phase Generator 1 | . . . . 1 . Machines Repaired . | . . . . . . Machines Dismantled . | . . . . . . Machines Sabotaged . | . . . . . . Overloaded Fab Kills . | . . . . . . Hacking | -11 -10 -9 -8 -8 -7 --------- Run | Yrd Mat Mat Mat Gar Fac Machines Accessed 5 | . . . 2 1 2 Terminals 3 | . . . 1 1 1 Fabricators . | . . . . . . Repair Stations . | . . . . . . Recycling Units . | . . . . . . Scanalyzers . | . . . . . . Garrison Access 2 | . . . 1 . 1 Total Hacks 8 | . . . 3 3 2 Successful 5 | . . . 3 1 1 Failed 3 | . . . . 2 1 Catastrophic 1 | . . . . 1 . Database Lockouts . | . . . . . . Manual 3 | . . . 2 . 1 Terminals 6 | . . . 2 3 1 Fabricators . | . . . . . . Repair Stations . | . . . . . . Recycling Units . | . . . . . . Scanalyzers . | . . . . . . Garrison Access 2 | . . . 1 . 1 Terminal Hacks 1 | . . . . 1 . Emergency Access Points 1 | . . . . 1 . Fabricator Hacks . | . . . . . . Repair Station Hacks . | . . . . . . Recycling Unit Hacks . | . . . . . . Scanalyzer . | . . . . . . Garrison Access Hacks 2 | . . . 1 . 1 Unlock Access 1 | . . . 1 . . Seal Access 1 | . . . . . 1 Unauthorized Hacks 2 | . . . 2 . . Terminals 2 | . . . 2 . . Botnet 1 | . . . 1 . . Skim 1 | . . . 1 . . Fabricators . | . . . . . . Repair Stations . | . . . . . . Recycling Units . | . . . . . . Scanalyzers . | . . . . . . Garrison Access . | . . . . . . Data Cores Recovered . | . . . . . . Used . | . . . . . . Hacking Detections 3 | . . . 1 1 1 Full Trace Events 1 | . . . . 1 . Feedback Events . | . . . . . . Feedback Blocked . | . . . . . . Robot Schematics Acquired . | . . . . . . Robots Built . | . . . . . . Authchips . | . . . . . . Time . | . . . . . . Total Robot Build Rating . | . . . . . . Part Schematics Acquired . | . . . . . . Parts Built . | . . . . . . Authchips . | . . . . . . Time . | . . . . . . Total Part Build Rating . | . . . . . . Parts Repaired . | . . . . . . Time . | . . . . . . Parts Recycled . | . . . . . . Recycled Matter . | . . . . . . Retrieved Matter . | . . . . . . Retrieved Components . | . . . . . . Parts Scanalyzed . | . . . . . . Part Schematics Acquired . | . . . . . . Parts Damaged . | . . . . . . Bothacking | -11 -10 -9 -8 -8 -7 ------------ Run | Yrd Mat Mat Mat Gar Fac Used RIF Installer 1 | . . . . 1 . Robots Hacked . | . . . . . . Non-combat . | . . . . . . Combat . | . . . . . . Robot Hacks Applied . | . . . . . . Relay Couplers Released . | . . . . . . Fabnet Peak Effective % . | . . . . . . Robots Rewired . | . . . . . . Allies Hacked . | . . . . . . Hacks Repelled . | . . . . . . Allies | -11 -10 -9 -8 -8 -7 -------- Run | Yrd Mat Mat Mat Gar Fac Total Allies . | . . . . . . Largest Group . | . . . . . . Highest-Rated Group . | . . . . . . Highest-Rated Ally . | . . . . . . Total Orders . | . . . . . . Ally Attacks . | . . . . . . Total Damage . | . . . . . . Kills . | . . . . . . Allies Corrupted . | . . . . . . Allies Melted . | . . . . . . Intel | -11 -10 -9 -8 -8 -7 ------- Run | Yrd Mat Mat Mat Gar Fac Active Infowar (turns) 3158 | 110 343 1095 675 578 357 Sensors 810 | . . . 616 194 . Terrain 435 | . . 435 . . . Seismic 3147 | 110 343 1095 675 567 357 Robot Analysis Total . | . . . . . . Derelict Logs Recovered . | . . . . . . Drone Launches . | . . . . . . Drone Recoveries . | . . . . . . Exploration | -11 -10 -9 -8 -8 -7 ------------- Run | Yrd Mat Mat Mat Gar Fac Turns Passed 3876 | 235 343 1095 675 611 917 Spaces Moved 1887 | 108 174 471 350 311 473 Core 12 | 2 . . . . 10 Treads 1594 | 106 174 471 350 311 182 Legs 69 | . . . . . 69 Wheels 211 | . . . . . 211 Hover . | . . . . . . Flight 1 | . . . . . 1 Fastest Speed 50 | 50 160 160 160 160 90 Average Speed 158 | 157 160 160 160 160 153 Slowest Speed 450 | 160 160 160 160 160 450 Overloaded Moves . | . . . . . . Propulsion Burnouts . | . . . . . . Robots Hopped . | . . . . . . Potential Cave-ins . | . . . . . . Cave-ins Triggered . | . . . . . . Exploration Rate (%) 33 | 7 45 54 36 41 17 Regions Visited 5 Branch Regions . Pre-discovered Areas . | . . . . . . Known Exits Taken 1 | . . . 1 . . Unknown Exits Taken 3 | 1 1 1 . . . Scrap Searched . | . . . . . . Spaces Dug 2 | . . . . 2 . Terrain Destroyed 96 | . . . 15 73 8 Melee 2 | . . . . 2 . Projectile . | . . . . . . AOE 94 | . . . 15 71 8 Terrain Rammed . | . . . . . . Walls Destroyed . | . . . . . . Machines Disabled . | . . . . . . Actions | -11 -10 -9 -8 -8 -7 --------- Run | Yrd Mat Mat Mat Gar Fac Total 2366 | 138 202 663 431 359 573 Wait 112 | . 2 48 42 5 15 Move 1881 | 107 173 470 349 309 473 Hop . | . . . . . . Pick Up 45 | 7 1 21 5 . 11 Fast Attach 22 | 7 . 6 1 . 8 Attach 18 | . . 4 3 5 6 Detach . | . . . . . . Swap 17 | . 2 9 3 1 2 Drop 24 | . 2 14 4 . 4 Fire 174 | 17 20 85 22 . 30 Melee 59 | . . . . 37 22 Ram 2 | . . . . . 2 Kick . | . . . . . . Crush 12 | . 2 6 2 2 . Escape Stasis . | . . . . . . Rewire . | . . . . . . Trap . | . . . . . . Miscellaneous . | . . . . . . Route ------- -11/Scrapyard -10/Materials (discovered 2 exits: [*Mat] / [*Min]) -9/Materials -8/Materials -8/Garrison -7/Factory History --------- Turn | Location | Event 4 | -11/Scrapyard | Discovered new exit (range 16) 236 | -11/Scrapyard | Entered Materials 302 | -10/Materials | Build established: Mutant 356 | -10/Materials | Discovered new exit (range 12) 450 | -10/Materials | Discovered new exit (range 15) 579 | -10/Materials | Entered another Materials area 579 | -9/Materials | Evolved 2 slots: Propulsion x1, Utility x1 1126 | -9/Materials | Build established: Scavenger-Mutant 1471 | -9/Materials | Build established: Mutant 1650 | -9/Materials | Discovered new exit (range 16) 1674 | -9/Materials | Entered another Materials area 1674 | -8/Materials | Evolved 2 slots: Propulsion x1, Utility x1 2258 | -8/Materials | Garrison activated, responded to threat 2347 | -8/Materials | Identified exit to Garrison 2349 | -8/Materials | Entered Garrison 2438 | -8/Garrison | Phase Generator disabled 2531 | -8/Garrison | Triggered checkpoint 2574 | -8/Garrison | Lost 3 parts (1n2u) 2916 | -8/Garrison | Discovered new exit (range 14) 2943 | -8/Garrison | Installed Relay Interface Framework 2954 | -8/Garrison | Identified exit to Factory 2960 | -8/Garrison | Entered Factory 2960 | -7/Factory | Evolved 2 slots: Propulsion x1, Utility x1 3353 | -7/Factory | System corruption reached 10% 3557 | -7/Factory | Core integrity fell below 50% 3607 | -7/Factory | Lost 8 parts (1p2n1u4w) 3821 | -7/Factory | Core integrity fell below 20% 3877 | -7/Factory | Destroyed by S-27 Virus with Autogun Last Messages --------------- 03796_ Identified Hvy. Deuterium Engine. 03797_ Acquired Lgt. Nuclear Core. 03801_ Acquired System Restoration Module. 03804_ YN 03862_ Arm. Wheel destroyed. 03867_ System Restoration Module purges 1% system corruption (12%). 03867_ System corrupted: Energy discharge (-108). 03867_ S-27 Virus destroyed. 03874_ System Restoration Module purges 1% system corruption (11%). Map ----- +----------------------------------------------------+ | ## [[ ! F" +??????????????????#*^! | | ## "" #??????????????????#%^[ | | ## [[ ! ##????????????????##+#####+# | | ##### [[ """ #????????????????# % | | #???# """ ################## | | #???# """ + | | #???# ################## | | = #???# !%! #????????????????# """""" | | ! #?### ###########????????????????# """""" | | %[! #?# #????????????????????????# """""" | | /####### #??????? ??????????????# """""" | | % * #??????# ??????????????# ????? | | % #??????# = ??????????????# ? ????? | | #??????# ?????????????###??????? | | ######## #??????# "??????????????????????? | | ???????# #??????# "??????????????????????? | | ???????#########??????# "??????????????????????? | | #####?????????????????# #??????????????????? | | ?????????????# """ #??????????????????? | | #######???????????????# """ #??????????????????? | | ??????#######?????????# """ #??????????????????? | | ??????# #???"""???# % #??????????????????? | | ??????# #??? ???# """#??????????????????? | | ??????# #??? ???# Y"#??????????????????? | | ??????# #???! ???# """#??????????????????? | | ??????# #??? ???#%%@ #??????????????????? | | ??????# #####+######s###########?????????????? | | ??????# ## k* ?????????? | | ??????# ## ?????????? | | ??????# ## ?????????? | | ??????# # ??????????? | | ??????# #T ??????????? | | ??????# [ ! ## ###################???????????? | | ##########+### # #????????????????????? | | [% r # """ #????????????????????? | | + """ #????????????????????? | | # """ #????????????????????? | | # = #????????????????????? | | # """ #????????????????????? | | ##+######+########## """ #????????????????????? | | #????????# """ #????????????????????? | | #????????# #????????????????????? | | """"""" [ #????????########??????????????????????? | | """"""" #??????????????????????????????????????? | | """"""" #??????????????????????????????????????? | | """"""" #??????????????????????????????????????? | | #??????????????????????????????????????? | | ? ???????????????????????????????????????? | | ?? ???????????????????????????????????????? | | ????? ???????????????????????????????????????? | +----------------------------------------------------+ Best States ------------- Heat Dissipation 34 Energy Generation 18 Energy Capacity 310 Matter Stores 300 Matter Capacity 300 Sight Range 16 Robot Scan Range 15 Terrain Scan Range 16 Terrain Scan Density 10 Evasion (%) 42 Melee Accuracy 6 Recoil Reduction 4 Offensive Hacking 10 Item Schematics ----------------- None Robot Schematics ------------------ None Fabricated ------------ Nothing Repaired ---------- Nothing Alien Tech Used ----------------- None Achievements -------------- None Challenges ------------ None Game ------ Seed DroneChargeInterrupter Manual? 0 Play Time 00:21:42 Cumulative 141.5 hours Start 2025.07.10 @ 13:56:21 End 2025.07.10 @ 14:17:16 Sessions 1 Manual Loads 0 Difficulty Rogue Special Mode None Game No. 367 Rogue 367 Adventurer 0 Explorer 0 Win Type - Total 4 Types 3/0/1/0/0/0/0/0/0/0 Lore% 67 Gallery% 57 Achievement% 47 Wizard Run 0 Options --------- Layout 0 ASCII 0 Keyboard 0 Movement Numpad Keybinds 0 Fullscreen 2 Font 18/Terminus Map View 76x50 Zoom Use 0% Tactical HUD 1 Map Filters NONE Filters NONE Steam 1 RUN: a9d973e8-71a5-440f-83a0-01c54d2e9f53